[Event "10th Iberoamericano-ch 2024"]
[Site "Linares"]
[Date "2024.09.29"]
[Round "7.24"]
[White "Vitier Vazquez, Cristian"]
[Black "Goncalves, Samuel Jesus P"]
[Result "0-1"]
[ECO "D78"]
[WhiteElo "2344"]
[BlackElo "2169"]
[Annotator "RC"]
[PlyCount "132"]
[EventDate "2024.09.25"]
[EventType "swiss"]
[EventCountry "ESP"]
[SourceTitle "playchess.com"]
[Source "ChessBase"]
[SourceQuality "1"]
[TimeControl "5400+30"]

1. d4 {[%emt 0:03:22]} Nf6 {[%emt 0:00:10]} 2. Nf3 {[%emt 0:00:33]} g6 {[%emt 0:00:07]} 3. c4 {[%emt 0:00:12]} Bg7 {[%emt 0:00:07]} 4. g3 {[%emt 0:00:24]} O-O {[%emt 0:00:09]} 5. Bg2 {[%emt 0:00:07]} c6 {[%emt 0:00:04]} 6. O-O {[%emt 0:00:22]} d5 {[%emt 0:00:05]} 7. Ne5 {[%emt 0:00:19]} dxc4 {[%emt 0:00:18]} 8. Nxc4 {[%emt 0:00:42]} Be6 {[%emt 0:00:20]} 9. Ne5 {[%emt 0:00:18]} Qb6 {[%emt 0:00:13]} 10. Nc3 {[%emt 0:34:12]} Rd8 {[%emt 0:00:30]} 11. e3 {[%emt 0:02:29]} Nbd7 {[%emt 0:01:29]} 12. Nxd7 {[%emt 0:02:17]} Bxd7 {[%emt 0:10:40]} 13. Qe2 {[%emt 0:11:22]} a5 {[%emt 0:21:03]} 14. Na4 {[%emt 0:06:00]} Qa7 {[%emt 0:00:45]} 15. Bd2 {[%emt 0:01:41]} Be8 {[%emt 0:02:45]} 16. Rac1 {[%emt 0:05:16]} Rac8 {[%emt 0:00:52]} 17. Rfd1 {[%emt 0:01:51]} Nd7 {[%emt 0:04:31]} 18. Bh3 {[%emt 0:06:02]} e6 {[%emt 0:01:24]} 19. Qe1 {[%emt 0:06:17]} b6 {[%emt 0:06:55]} 20. Bg2 {[%emt 0:00:50]} e5 {[%emt 0:03:32]} 21. Rxc6 {[%emt 0:01:59]} Rxc6 {[%emt 0:02:07]} 22. Bxc6 {[%emt 0:00:02]} exd4 {[%emt 0:00:09]} 23. exd4 {[%emt 0:02:22]} Ne5 {[%emt 0:00:15]} 24. dxe5 {[%emt 0:01:38]} Bxc6 {[%emt 0:00:12]} 25. Be3 {[%emt 0:02:52]} Re8 {[%emt 0:04:10]} 26. Nxb6 {[%emt 0:01:26]} Bf3 {[%emt 0:03:43]} 27. Rd7 {[%emt 0:01:10]} Qb8 {[%emt 0:00:05]} 28. Qxa5 {[%emt 0:03:14]} Bg4 {[%emt 0:01:18]} 29. Ra7 {[%emt 0:01:54]} Bf3 {[%emt 0:07:29]} 30. Rd7 {[%emt 0:00:12]} Bxe5 {[%emt 0:01:45]} 31. Qc5 {[%emt 0:02:36]} Bg4 {[%emt 0:14:59]} 32. b4 {[%emt 0:00:25]} Bg7 {[%emt 0:02:25]} 33. Re7 {[%emt 0:01:26]} Bf8 {[%emt 0:03:29]} 34. Rxe8 {[%emt 0:00:13]} Qxe8 {[%emt 0:00:04]} 35. Qd4 {[%emt 0:00:51]} Bh3 {[%emt 0:05:20]} 36. Nd5 {[%emt 0:00:40]} Bg7 {[%emt 0:00:04]} 37. Qh4 {[%emt 0:00:47]} Qd7 {[%emt 0:00:52]} 38. Qe4 {[%emt 0:00:24]} Qb5 {[%emt 0:01:53]} 39. Ne7+ {[%emt 0:00:36]} Kf8 {[%emt 0:00:01]} 40. Qa8+ {[%emt 0:00:30]} Kxe7 {[%emt 0:00:11]} 41. Bc5+ {[%emt 0:00:11]} Ke6 {[%emt 0:01:12]} 42. Qe4+ Be5 {[%emt 0:00:23]} 43. Qb1 {[%emt 0:01:23]} Qc6 {[%emt 0:00:48]} 44. Qb3+ {[%emt 0:00:25]} Qd5 {[%emt 0:00:40]} 45. Qxd5+ {[%emt 0:00:19]} Kxd5 {[%emt 0:00:05]} 46. a4 {[%emt 0:00:05]} Kc4 {[%emt 0:01:05]} 47. a5 {[%emt 0:00:09]} Bc8 {[%emt 0:00:21]} 48. Kg2 {[%emt 0:00:23]} Bc3 {[%emt 0:01:13]} 49. Kf3 {[%emt 0:00:17]} Bxb4 {[%emt 0:00:44]} 50. Bxb4 {[%emt 0:00:07]} Kxb4 {[%emt 0:00:05]} 51. Kf4 {[%emt 0:00:05]} f6 {[%emt 0:00:32]} 52. Ke4 {[%emt 0:00:08]} Kc5 {[%emt 0:00:36]} 53. h4 {[%emt 0:00:15]} h5 {[%emt 0:00:35]} 54. f3 {[%emt 0:01:06]} Bb7+ {[%emt 0:00:55]} 55. Kf4 {[%emt 0:00:15]} Kb5 {[%emt 0:00:39]} 56. g4 {[%emt 0:00:09]} Kxa5 {[%emt 0:00:21]} 57. g5 {[%emt 0:00:45]} fxg5+ {[%emt 0:00:16]} 58. hxg5 {[%emt 0:00:30]} Kb5 {[%emt 0:00:10]} 59. Kg3 {[%emt 0:00:18]} Kc5 {[%emt 0:00:11]} 60. f4 {[%emt 0:00:06]} Be4 {[%emt 0:00:06]} 61. Kh3 {[%emt 0:00:19]} Bf5+ {[%emt 0:00:08]} 62. Kg3 {[%emt 0:00:09]} Kd4 {[%emt 0:00:06]} 63. Kf3 {[%emt 0:00:06]} Kd3 {[%emt 0:00:05]} 64. Kg3 {[%emt 0:00:05]} Ke4 {[%emt 0:00:17]} 65. Kh4 {[%emt 0:00:06]} Bg4 {[%emt 0:00:11]} 66. Kg3 {[%emt 0:00:06]} Bd1 {[%emt 0:00:39]} 0-1

[Event "10th Iberoamericano-ch 2024"]
[Site "Linares"]
[Date "2024.09.29"]
[Round "7.25"]
[White "Leyva, Hector"]
[Black "Jimenez Fernandez, Rebeca"]
[Result "1/2-1/2"]
[ECO "A05"]
[WhiteElo "2296"]
[BlackElo "2097"]
[Annotator "RC"]
[PlyCount "137"]
[EventDate "2024.09.25"]
[EventType "swiss"]
[EventCountry "ESP"]
[SourceTitle "playchess.com"]
[Source "ChessBase"]
[SourceQuality "1"]
[TimeControl "5400+30"]

1. Nf3 {[%emt 0:00:02]} Nf6 {[%emt 0:00:07]} 2. g3 {[%emt 0:00:06]} d5 {[%emt 0:00:05]} 3. Bg2 {[%emt 0:00:05]} e6 {[%emt 0:00:03]} 4. O-O {[%emt 0:00:21]} Be7 {[%emt 0:00:03]} 5. d3 {[%emt 0:00:08]} O-O {[%emt 0:00:16]} 6. a4 {[%emt 0:04:55]} a5 {[%emt 0:02:11]} 7. Bf4 {[%emt 0:06:52]} Nc6 {[%emt 0:10:41]} 8. Nc3 {[%emt 0:04:51]} d4 {[%emt 0:11:22]} 9. Nb5 {[%emt 0:00:50]} Nd5 {[%emt 0:00:37]} 10. Bd2 {[%emt 0:03:41]} e5 {[%emt 0:03:53]} 11. c3 {[%emt 0:00:50]} Bf6 {[%emt 0:02:50]} 12. Rc1 {[%emt 0:01:05]} Be6 {[%emt 0:08:41]} 13. cxd4 {[%emt 0:03:39]} exd4 {[%emt 0:00:23]} 14. Rxc6 {[%emt 0:00:55]} bxc6 {[%emt 0:00:18]} 15. Nbxd4 {[%emt 0:00:05]} Bd7 {[%emt 0:06:23]} 16. Qc2 {[%emt 0:11:18]} c5 {[%emt 0:19:38]} 17. Qxc5 {[%emt 0:10:29]} Bxa4 {[%emt 0:00:37]} 18. Ra1 {[%emt 0:01:00]} Nb6 {[%emt 0:12:14]} 19. Bc3 {[%emt 0:05:41]} Qd6 {[%emt 0:03:12]} 20. Qh5 {[%emt 0:02:07]} Bd7 {[%emt 0:04:14]} 21. Ng5 {[%emt 0:04:36]} Bxg5 {[%emt 0:04:09]} 22. Qxg5 {[%emt 0:06:59]} f6 {[%emt 0:01:46]} 23. Qf4 {[%emt 0:11:47]} Ra7 {[%emt 0:06:42]} 24. Qxd6 {[%emt 0:08:12]} cxd6 {[%emt 0:00:05]} 25. Rxa5 {[%emt 0:00:58]} Rxa5 {[%emt 0:00:37]} 26. Bxa5 {[%emt 0:00:00]} Rc8 {[%emt 0:00:40]} 27. f4 {[%emt 0:00:30]} Na4 {[%emt 0:00:35]} 28. b3 {[%emt 0:04:59]} Nc3 {[%emt 0:00:16]} 29. Bb4 {[%emt 0:04:04]} Bg4 {[%emt 0:01:17]} 30. Bxc3 {[%emt 0:00:38]} Rxc3 {[%emt 0:00:11]} 31. Kf2 {[%emt 0:00:09]} Kf8 {[%emt 0:00:15]} 32. h3 {[%emt 0:00:46]} Bd7 {[%emt 0:00:10]} 33. g4 {[%emt 0:00:17]} Ke7 {[%emt 0:00:13]} 34. f5 {[%emt 0:00:19]} Rc1 {[%emt 0:00:54]} 35. Bd5 {[%emt 0:01:28]} Rb1 {[%emt 0:01:28]} 36. h4 {[%emt 0:00:48]} h6 {[%emt 0:00:06]} 37. Kg3 {[%emt 0:02:14]} Rg1+ {[%emt 0:00:39]} 38. Kf4 {[%emt 0:00:25]} g5+ {[%emt 0:00:58]} 39. hxg5 {[%emt 0:00:28]} hxg5+ {[%emt 0:00:20]} 40. Kf3 {[%emt 0:00:12]} Rf1+ {[%emt 0:00:35]} 41. Ke3 {[%emt 0:00:08]} Rg1 {[%emt 0:00:38]} 42. Bf3 {[%emt 0:00:15]} d5 {[%emt 0:00:35]} 43. Kf2 {[%emt 0:00:17]} Rb1 {[%emt 0:00:12]} 44. Bxd5 {[%emt 0:00:11]} Kd6 {[%emt 0:00:08]} 45. Bc4 {[%emt 0:01:08]} Ke5 {[%emt 0:00:47]} 46. Ke3 {[%emt 0:00:08]} Bc8 {[%emt 0:00:35]} 47. Nf3+ {[%emt 0:00:49]} Kd6 {[%emt 0:00:04]} 48. Nd2 {[%emt 0:00:20]} Rg1 {[%emt 0:00:14]} 49. Ne4+ {[%emt 0:00:08]} Ke7 {[%emt 0:00:19]} 50. Kf3 {[%emt 0:01:05]} Bb7 {[%emt 0:00:04]} 51. b4 {[%emt 0:01:26]} Bxe4+ {[%emt 0:00:17]} 52. Kxe4 {[%emt 0:00:24]} Rxg4+ {[%emt 0:00:13]} 53. Kd5 {[%emt 0:01:06]} Kd7 {[%emt 0:02:36]} 54. b5 {[%emt 0:00:20]} Kc7 {[%emt 0:00:09]} 55. Kc5 {[%emt 0:00:12]} Rf4 {[%emt 0:00:21]} 56. b6+ {[%emt 0:00:18]} Kb8 {[%emt 0:00:13]} 57. Bd5 {[%emt 0:01:20]} Rxf5 {[%emt 0:00:19]} 58. e4 {[%emt 0:00:21]} Rf2 {[%emt 0:00:19]} 59. Kd6 {[%emt 0:00:25]} g4 {[%emt 0:00:16]} 60. d4 {[%emt 0:00:08]} g3 {[%emt 0:00:14]} 61. e5 {[%emt 0:00:06]} fxe5 {[%emt 0:00:08]} 62. dxe5 {[%emt 0:00:08]} g2 {[%emt 0:00:08]} 63. Bxg2 {[%emt 0:00:06]} Rxg2 {[%emt 0:00:06]} 64. e6 {[%emt 0:00:08]} Rd2+ {[%emt 0:02:01]} 65. Kc6 {[%emt 0:00:17]} Re2 {[%emt 0:00:10]} 66. Kd7 {[%emt 0:00:27]} Kb7 {[%emt 0:00:09]} 67. e7 {[%emt 0:00:06]} Kxb6 {[%emt 0:00:04]} 68. e8=Q Rxe8 69. Kxe8 {[%emt 0:00:47]} 1/2-1/2

[Event "10th Iberoamericano-ch 2024"]
[Site "Linares"]
[Date "2024.09.29"]
[Round "7.26"]
[White "Merario Alarcon, Andres"]
[Black "Diaz Mino, Daniel"]
[Result "1-0"]
[ECO "D50"]
[WhiteElo "2408"]
[BlackElo "2130"]
[Annotator "RC"]
[PlyCount "77"]
[EventDate "2024.09.25"]
[EventType "swiss"]
[EventCountry "ESP"]
[SourceTitle "playchess.com"]
[Source "ChessBase"]
[SourceQuality "1"]
[TimeControl "5400+30"]

1. d4 {[%emt 0:00:04]} d5 {[%emt 0:03:21]} 2. c4 {[%emt 0:00:15]} e6 {[%emt 0:00:05]} 3. Nc3 {[%emt 0:00:15]} Nf6 {[%emt 0:00:18]} 4. Bg5 {[%emt 0:00:36]} dxc4 {[%emt 0:04:40]} 5. e3 {[%emt 0:00:40]} c5 {[%emt 0:17:31]} 6. Bxf6 {[%emt 0:00:49]} Qxf6 {[%emt 0:01:09]} 7. d5 {[%emt 0:00:17]} exd5 {[%emt 0:10:14]} 8. Nxd5 {[%emt 0:19:56]} Qd8 {[%emt 0:01:09]} 9. Bxc4 {[%emt 0:01:05]} Bd6 {[%emt 0:02:46]} 10. Nf3 {[%emt 0:13:16]} O-O {[%emt 0:00:30]} 11. O-O {[%emt 0:01:10]} Nc6 {[%emt 0:02:18]} 12. h3 {[%emt 0:07:38]} Ne5 {[%emt 0:06:38]} 13. Nxe5 {[%emt 0:01:02]} Bxe5 {[%emt 0:00:04]} 14. Qb3 {[%emt 0:06:49]} Rb8 {[%emt 0:14:57]} 15. a4 {[%emt 0:00:52]} g6 {[%emt 0:03:29]} 16. Rad1 {[%emt 0:02:18]} Qh4 {[%emt 0:00:33]} 17. f4 {[%emt 0:00:41]} Bg7 {[%emt 0:00:13]} 18. Kh2 {[%emt 0:07:39]} Bf5 {[%emt 0:03:50]} 19. Rd2 {[%emt 0:01:35]} b6 {[%emt 0:00:41]} 20. Rfd1 {[%emt 0:01:32]} Bg4 {[%emt 0:06:08]} 21. Be2 {[%emt 0:01:17]} Be6 {[%emt 0:01:22]} 22. Bf1 {[%emt 0:00:59]} Bxd5 {[%emt 0:02:24]} 23. Rxd5 {[%emt 0:01:09]} Qf6 {[%emt 0:02:22]} 24. Rd7 {[%emt 0:04:05]} Qxb2 {[%emt 0:08:15]} 25. Qxb2 {[%emt 0:08:55]} Bxb2 {[%emt 0:00:02]} 26. Kg3 {[%emt 0:00:32]} Kg7 {[%emt 0:02:21]} 27. R1d6 {[%emt 0:03:27]} Bf6 {[%emt 0:04:47]} 28. e4 {[%emt 0:00:18]} Rbe8 {[%emt 0:01:38]} 29. Kf3 {[%emt 0:01:39]} Rd8 {[%emt 0:00:37]} 30. e5 {[%emt 0:00:24]} Bh4 {[%emt 0:00:01]} 31. g3 {[%emt 0:05:18]} Rxd7 {[%emt 0:00:01]} 32. Rxd7 {[%emt 0:00:02]} Bd8 {[%emt 0:00:14]} 33. Bc4 {[%emt 0:00:57]} a6 {[%emt 0:00:48]} 34. Bxa6 {[%emt 0:01:18]} Re8 {[%emt 0:00:00]} 35. Bb5 {[%emt 0:01:06]} h5 {[%emt 0:01:10]} 36. e6 {[%emt 0:00:57]} Kh6 {[%emt 0:00:57]} 37. Rxd8 {[%emt 0:00:51]} Rxe6 {[%emt 0:00:49]} 38. Rd7 {[%emt 0:00:17]} Re1 {[%emt 0:00:20]} 39. Rxf7 {[%emt 0:00:27]} 1-0

[Event "10th Iberoamericano-ch 2024"]
[Site "Linares"]
[Date "2024.09.29"]
[Round "7.27"]
[White "Atienza Alvarez, Javier"]
[Black "Garcia, Jhoel"]
[Result "1/2-1/2"]
[ECO "E04"]
[WhiteElo "2119"]
[BlackElo "2360"]
[Annotator "RC"]
[PlyCount "109"]
[EventDate "2024.09.25"]
[EventType "swiss"]
[EventCountry "ESP"]
[SourceTitle "playchess.com"]
[Source "ChessBase"]
[SourceQuality "1"]
[TimeControl "5400+30"]

1. d4 {[%emt 0:02:07]} Nf6 {[%emt 0:00:06]} 2. c4 {[%emt 0:00:13]} e6 {[%emt 0:00:05]} 3. Nf3 {[%emt 0:00:23]} d5 {[%emt 0:00:42]} 4. g3 {[%emt 0:00:57]} dxc4 {[%emt 0:00:54]} 5. Bg2 {[%emt 0:00:13]} Nc6 {[%emt 0:00:23]} 6. Qa4 {[%emt 0:05:33]} Bb4+ {[%emt 0:01:03]} 7. Bd2 {[%emt 0:00:06]} Nd5 {[%emt 0:00:48]} 8. Bxb4 {[%emt 0:00:06]} Ndxb4 {[%emt 0:00:08]} 9. O-O {[%emt 0:02:38]} Rb8 {[%emt 0:16:53]} 10. Na3 {[%emt 0:06:26]} O-O {[%emt 0:02:49]} 11. Qb5 {[%emt 0:00:29]} b6 {[%emt 0:12:14]} 12. Qxc4 {[%emt 0:00:08]} Ba6 {[%emt 0:01:29]} 13. Nb5 {[%emt 0:01:28]} Qd5 {[%emt 0:08:17]} 14. Qxd5 {[%emt 0:02:37]} exd5 {[%emt 0:09:56]} 15. Nc3 {[%emt 0:08:25]} Rfe8 {[%emt 0:02:16]} 16. Rfc1 {[%emt 0:11:02]} Bxe2 {[%emt 0:05:47]} 17. Nxe2 {[%emt 0:39:20]} Rxe2 {[%emt 0:00:25]} 18. Rab1 {[%emt 0:02:35]} Nc2 {[%emt 0:13:53]} 19. Rd1 {[%emt 0:00:52]} Na5 {[%emt 0:12:14]} 20. Bf1 {[%emt 0:01:53]} Re7 {[%emt 0:00:52]} 21. Rbc1 {[%emt 0:05:41]} Nb4 {[%emt 0:00:14]} 22. a3 {[%emt 0:00:33]} Nbc6 {[%emt 0:01:18]} 23. b4 {[%emt 0:03:01]} Nc4 {[%emt 0:00:15]} 24. Bxc4 {[%emt 0:00:11]} dxc4 {[%emt 0:00:04]} 25. Rxc4 {[%emt 0:00:04]} Nd8 {[%emt 0:00:41]} 26. Kf1 {[%emt 0:02:42]} f6 {[%emt 0:00:29]} 27. d5 {[%emt 0:00:44]} Rd7 {[%emt 0:01:03]} 28. Rdc1 {[%emt 0:01:19]} Rc8 {[%emt 0:00:26]} 29. Ke2 {[%emt 0:00:47]} Nf7 {[%emt 0:00:43]} 30. Rc6 {[%emt 0:00:43]} h6 {[%emt 0:00:38]} 31. h4 {[%emt 0:00:09]} Kh7 {[%emt 0:01:30]} 32. Ke3 {[%emt 0:00:53]} h5 {[%emt 0:04:13]} 33. Ke2 {[%emt 0:01:47]} Kg8 {[%emt 0:00:09]} 34. a4 {[%emt 0:00:04]} Kh7 {[%emt 0:00:16]} 35. R1c2 {[%emt 0:00:25]} Kg8 {[%emt 0:00:35]} 36. Rc1 {[%emt 0:00:05]} Re8+ {[%emt 0:00:19]} 37. Re6 {[%emt 0:01:48]} Rc8 {[%emt 0:00:51]} 38. Rec6 {[%emt 0:00:03]} Nd8 {[%emt 0:01:37]} 39. R6c3 {[%emt 0:00:43]} Kf8 {[%emt 0:01:23]} 40. Ke3 {[%emt 0:00:20]} Nf7 {[%emt 0:00:23]} 41. Nd4 {[%emt 0:00:27]} Re8+ {[%emt 0:01:12]} 42. Ne6+ {[%emt 0:00:48]} Kg8 {[%emt 0:00:07]} 43. Kf3 {[%emt 0:00:25]} Rxd5 {[%emt 0:00:45]} 44. Nf4 {[%emt 0:00:41]} Ne5+ {[%emt 0:00:53]} 45. Kg2 {[%emt 0:00:06]} Rd2 {[%emt 0:00:13]} 46. Rxc7 {[%emt 0:00:13]} g6 {[%emt 0:01:16]} 47. R1c2 {[%emt 0:01:12]} Red8 {[%emt 0:00:30]} 48. Rxd2 {[%emt 0:00:28]} Rxd2 {[%emt 0:00:06]} 49. Rxa7 {[%emt 0:00:05]} Ng4 {[%emt 0:00:30]} 50. Nxg6 {[%emt 0:00:33]} Rxf2+ {[%emt 0:00:14]} 51. Kg1 {[%emt 0:00:03]} Rf3 {[%emt 0:00:26]} 52. Kg2 {[%emt 0:00:35]} Rf2+ {[%emt 0:00:24]} 53. Kg1 {[%emt 0:00:05]} Rf3 {[%emt 0:00:56]} 54. Kg2 {[%emt 0:01:23]} Rf2+ {[%emt 0:00:27]} 55. Kg1 {[%emt 0:00:13]} 1/2-1/2

[Event "10th Iberoamericano-ch 2024"]
[Site "Linares"]
[Date "2024.09.29"]
[Round "7.28"]
[White "Maldonado Mena, German"]
[Black "Teran Alvarez, Ismael"]
[Result "1/2-1/2"]
[ECO "A40"]
[WhiteElo "2123"]
[BlackElo "2329"]
[Annotator "RC"]
[PlyCount "199"]
[EventDate "2024.09.25"]
[EventType "swiss"]
[EventCountry "ESP"]
[SourceTitle "playchess.com"]
[Source "ChessBase"]
[SourceQuality "1"]
[TimeControl "5400+30"]

1. d4 {[%emt 0:04:00]} e6 {[%emt 0:00:16]} 2. c4 {[%emt 0:00:05]} b6 {[%emt 0:01:03]} 3. Nc3 {[%emt 0:01:43]} Bb4 {[%emt 0:01:04]} 4. Qc2 {[%emt 0:00:12]} Bb7 {[%emt 0:00:44]} 5. e4 {[%emt 0:02:30]} Bxc3+ {[%emt 0:01:32]} 6. bxc3 {[%emt 0:00:18]} Qh4 {[%emt 0:00:37]} 7. e5 {[%emt 0:23:31]} f6 {[%emt 0:12:42]} 8. g3 {[%emt 0:10:58]} Qh5 {[%emt 0:04:56]} 9. Be2 {[%emt 0:00:26]} Qf7 {[%emt 0:00:37]} 10. Nf3 {[%emt 0:00:07]} Nc6 {[%emt 0:21:55]} 11. exf6 {[%emt 0:01:55]} Nxf6 {[%emt 0:07:24]} 12. O-O {[%emt 0:01:43]} Na5 {[%emt 0:08:47]} 13. Ne5 {[%emt 0:04:57]} Qe7 {[%emt 0:00:32]} 14. Bg5 {[%emt 0:00:06]} O-O-O {[%emt 0:04:10]} 15. c5 {[%emt 0:01:58]} d6 {[%emt 0:08:51]} 16. cxd6 {[%emt 0:04:04]} cxd6 {[%emt 0:00:01]} 17. Nc4 {[%emt 0:00:32]} Nxc4 {[%emt 0:01:30]} 18. Bxc4 {[%emt 0:00:06]} h6 {[%emt 0:00:45]} 19. Bxf6 {[%emt 0:01:21]} Qxf6 {[%emt 0:00:21]} 20. Qe2 {[%emt 0:00:22]} Rhe8 {[%emt 0:05:16]} 21. Ba6 {[%emt 0:00:19]} e5 {[%emt 0:01:21]} 22. a4 {[%emt 0:00:53]} exd4 {[%emt 0:05:36]} 23. Qc4+ {[%emt 0:00:16]} Kb8 {[%emt 0:00:07]} 24. Bxb7 {[%emt 0:00:07]} Kxb7 {[%emt 0:00:05]} 25. a5 {[%emt 0:00:17]} d5 {[%emt 0:01:02]} 26. Qd3 {[%emt 0:00:16]} Re6 {[%emt 0:03:40]} 27. cxd4 {[%emt 0:01:04]} a6 {[%emt 0:03:44]} 28. axb6 {[%emt 0:00:39]} Rxb6 {[%emt 0:00:09]} 29. Ra5 {[%emt 0:02:35]} Rdd6 {[%emt 0:01:59]} 30. Rc5 {[%emt 0:01:28]} Rb4 {[%emt 0:02:53]} 31. Rb1 {[%emt 0:00:54]} Rxb1+ {[%emt 0:00:15]} 32. Qxb1+ {[%emt 0:00:05]} Rb6 {[%emt 0:00:07]} 33. Qd3 {[%emt 0:00:31]} Qe6 {[%emt 0:00:39]} 34. Qf3 {[%emt 0:00:14]} Rb5 {[%emt 0:00:40]} 35. Rc1 {[%emt 0:01:58]} Rb6 {[%emt 0:00:45]} 36. Qf8 {[%emt 0:01:09]} Qd7 {[%emt 0:00:23]} 37. Re1 {[%emt 0:00:55]} Re6 {[%emt 0:00:23]} 38. Qb4+ {[%emt 0:00:18]} Rb6 {[%emt 0:01:42]} 39. Qc5 {[%emt 0:00:50]} Re6 {[%emt 0:00:43]} 40. Rb1+ {[%emt 0:00:09]} Ka8 {[%emt 0:00:07]} 41. Qf8+ {[%emt 0:16:15]} Qe8 {[%emt 0:00:26]} 42. Qb4 {[%emt 0:00:32]} Qc8 {[%emt 0:00:14]} 43. Kg2 {[%emt 0:03:15]} Qc7 {[%emt 0:00:47]} 44. Rb3 {[%emt 0:02:13]} Ka7 {[%emt 0:00:24]} 45. Rc3 {[%emt 0:01:10]} Rc6 {[%emt 0:00:47]} 46. Re3 {[%emt 0:00:05]} Qb7 {[%emt 0:00:30]} 47. Qa5 {[%emt 0:01:09]} Rc7 {[%emt 0:00:29]} 48. Re6 {[%emt 0:00:26]} Rc6 {[%emt 0:00:39]} 49. Re5 {[%emt 0:00:05]} Rc7 {[%emt 0:00:25]} 50. h4 {[%emt 0:01:20]} Qb6 {[%emt 0:00:25]} 51. Qxd5 {[%emt 0:02:30]} Qb7 {[%emt 0:00:21]} 52. Qxb7+ {[%emt 0:00:27]} Kxb7 {[%emt 0:00:13]} 53. Kf3 {[%emt 0:00:32]} Kb6 {[%emt 0:00:09]} 54. Ke4 {[%emt 0:01:55]} a5 {[%emt 0:00:54]} 55. d5 {[%emt 0:00:25]} Rd7 {[%emt 0:00:40]} 56. Kd4 {[%emt 0:01:33]} a4 {[%emt 0:00:31]} 57. Kc4 {[%emt 0:02:58]} a3 {[%emt 0:00:35]} 58. Re6+ {[%emt 0:00:53]} Kb7 {[%emt 0:00:49]} 59. Kb3 {[%emt 0:00:13]} Rxd5 {[%emt 0:00:41]} 60. Re7+ {[%emt 0:01:14]} Kc8 {[%emt 0:00:22]} 61. Kxa3 {[%emt 0:03:20]} Rf5 {[%emt 0:00:36]} 62. Rxg7 {[%emt 0:00:45]} Rxf2 {[%emt 0:00:15]} 63. Kb4 {[%emt 0:00:33]} Kd8 {[%emt 0:00:13]} 64. Kc5 {[%emt 0:00:14]} Ke8 {[%emt 0:00:14]} 65. Kd5 {[%emt 0:01:11]} Kf8 {[%emt 0:00:22]} 66. Rg4 {[%emt 0:00:44]} Ra2 {[%emt 0:00:16]} 67. Ke6 {[%emt 0:00:25]} Ra6+ {[%emt 0:00:23]} 68. Kf5 {[%emt 0:00:05]} Kf7 {[%emt 0:00:13]} 69. Re4 {[%emt 0:00:58]} Ra3 {[%emt 0:00:43]} 70. Kg4 {[%emt 0:00:29]} Kf6 {[%emt 0:00:37]} 71. Rb4 {[%emt 0:00:38]} Ra5 {[%emt 0:00:32]} 72. Rb6+ {[%emt 0:00:27]} Kg7 {[%emt 0:00:07]} 73. Re6 {[%emt 0:00:51]} Ra3 {[%emt 0:00:48]} 74. Kf4 {[%emt 0:00:17]} Rb3 {[%emt 0:00:08]} 75. g4 {[%emt 0:00:07]} Rb4+ {[%emt 0:00:25]} 76. Re4 {[%emt 0:01:39]} Rb7 {[%emt 0:00:07]} 77. Re5 {[%emt 0:00:28]} Ra7 {[%emt 0:00:26]} 78. Re6 {[%emt 0:00:12]} Rb7 {[%emt 0:00:20]} 79. Kf5 {[%emt 0:00:56]} Rb5+ {[%emt 0:00:10]} 80. Re5 {[%emt 0:00:16]} Rb7 {[%emt 0:00:08]} 81. h5 {[%emt 0:00:28]} Ra7 {[%emt 0:00:15]} 82. Rd5 {[%emt 0:00:24]} Rf7+ {[%emt 0:00:51]} 83. Ke5 {[%emt 0:00:52]} Re7+ {[%emt 0:00:15]} 84. Kf4 {[%emt 0:00:12]} Rf7+ {[%emt 0:00:19]} 85. Ke4 {[%emt 0:00:14]} Re7+ {[%emt 0:00:21]} 86. Re5 {[%emt 0:00:07]} Ra7 {[%emt 0:00:07]} 87. Re6 {[%emt 0:00:17]} Ra4+ {[%emt 0:00:41]} 88. Kf5 {[%emt 0:00:23]} Ra5+ {[%emt 0:00:08]} 89. Re5 {[%emt 0:01:15]} Ra7 {[%emt 0:00:06]} 90. Re4 {[%emt 0:01:06]} Rb7 {[%emt 0:01:29]} 91. Rd4 {[%emt 0:00:24]} Rb5+ {[%emt 0:00:57]} 92. Ke6 {[%emt 0:00:18]} Rb6+ {[%emt 0:00:21]} 93. Rd6 {[%emt 0:00:15]} Rxd6+ {[%emt 0:00:11]} 94. Kxd6 {[%emt 0:00:05]} Kf6 {[%emt 0:00:04]} 95. Kd5 {[%emt 0:00:10]} Kg5 {[%emt 0:00:07]} 96. Ke4 {[%emt 0:00:05]} Kxg4 {[%emt 0:00:04]} 97. Ke3 {[%emt 0:00:06]} Kg3 {[%emt 0:00:01]} 98. Ke4 {[%emt 0:00:16]} Kg4 {[%emt 0:00:05]} 99. Ke3 {[%emt 0:00:03]} Kxh5 {[%emt 0:00:06]} 100. Kd4 1/2-1/2

[Event "10th Iberoamericano-ch 2024"]
[Site "Linares"]
[Date "2024.09.29"]
[Round "7.29"]
[White "Giron, Jorge Ernesto"]
[Black "Suarez Gomez, Paula"]
[Result "1/2-1/2"]
[ECO "C07"]
[WhiteElo "2276"]
[BlackElo "2111"]
[Annotator "RC"]
[PlyCount "68"]
[EventDate "2024.09.25"]
[EventType "swiss"]
[EventCountry "ESP"]
[SourceTitle "playchess.com"]
[Source "ChessBase"]
[SourceQuality "1"]
[TimeControl "5400+30"]

1. e4 {[%emt 0:00:28]} e6 {[%emt 0:00:05]} 2. d4 {[%emt 0:00:04]} d5 {[%emt 0:00:04]} 3. Nd2 {[%emt 0:00:06]} c5 {[%emt 0:00:08]} 4. exd5 {[%emt 0:00:07]} Qxd5 {[%emt 0:00:08]} 5. Ngf3 {[%emt 0:00:06]} cxd4 {[%emt 0:00:08]} 6. Bc4 {[%emt 0:00:04]} Qd7 {[%emt 0:00:09]} 7. Qe2 {[%emt 0:00:05]} Nc6 {[%emt 0:00:21]} 8. O-O {[%emt 0:00:05]} Nf6 {[%emt 0:00:36]} 9. Nb3 {[%emt 0:00:07]} a6 {[%emt 0:00:06]} 10. a4 {[%emt 0:00:07]} Bd6 {[%emt 0:00:19]} 11. Rd1 {[%emt 0:02:29]} e5 {[%emt 0:00:52]} 12. Nbxd4 {[%emt 0:01:54]} Nxd4 {[%emt 0:00:07]} 13. Nxd4 {[%emt 0:01:24]} Qe7 {[%emt 0:01:48]} 14. Nb3 {[%emt 0:00:51]} e4 {[%emt 0:08:53]} 15. h3 {[%emt 0:05:34]} O-O {[%emt 0:02:54]} 16. Be3 {[%emt 0:00:18]} Rd8 {[%emt 0:08:56]} 17. Nd2 {[%emt 0:13:30]} Bd7 {[%emt 0:22:44]} 18. Nf1 {[%emt 0:03:33]} Bc6 {[%emt 0:05:40]} 19. Bd4 {[%emt 0:28:43]} Be5 {[%emt 0:05:58]} 20. Bxe5 {[%emt 0:02:33]} Qxe5 {[%emt 0:00:17]} 21. c3 {[%emt 0:00:01]} Nd5 {[%emt 0:08:27]} 22. Bxd5 {[%emt 0:03:23]} Bxd5 {[%emt 0:03:55]} 23. Rd4 {[%emt 0:00:26]} Rd6 {[%emt 0:05:39]} 24. Rad1 {[%emt 0:00:59]} Rad8 {[%emt 0:00:14]} 25. Qd2 {[%emt 0:00:56]} R6d7 {[%emt 0:00:33]} 26. Qe3 {[%emt 0:18:54]} Bc6 {[%emt 0:01:28]} 27. Rxd7 {[%emt 0:02:46]} Rxd7 {[%emt 0:00:04]} 28. Rxd7 {[%emt 0:00:05]} Bxd7 {[%emt 0:00:07]} 29. f4 {[%emt 0:02:16]} Qd5 {[%emt 0:04:02]} 30. Nd2 {[%emt 0:00:20]} Bxa4 {[%emt 0:03:40]} 31. Qxe4 {[%emt 0:00:14]} Qc5+ {[%emt 0:00:54]} 32. Kh2 {[%emt 0:01:48]} Bc6 {[%emt 0:00:04]} 33. Qe2 {[%emt 0:00:16]} Qf5 {[%emt 0:01:07]} 34. Qe3 {[%emt 0:00:43]} g6 {[%emt 0:01:40]} 1/2-1/2

[Event "10th Iberoamericano-ch 2024"]
[Site "Linares"]
[Date "2024.09.29"]
[Round "7.30"]
[White "Barrenechea Bahamonde, Gustavo"]
[Black "Bendayan Claros, Aaron"]
[Result "0-1"]
[ECO "B10"]
[WhiteElo "2093"]
[BlackElo "2200"]
[Annotator "RC"]
[PlyCount "76"]
[EventDate "2024.09.25"]
[EventType "swiss"]
[EventCountry "ESP"]
[SourceTitle "playchess.com"]
[Source "ChessBase"]
[SourceQuality "1"]
[TimeControl "5400+30"]

1. e4 c6 2. Nc3 d5 3. Nf3 dxe4 4. Nxe4 Nf6 5. Qe2 Nxe4 6. Qxe4 Nd7 7. Bc4 Nf6 8. Ne5 e6 9. Qe2 b5 10. Bd3 Qc7 11. a4 b4 12. b3 Bb7 13. Bb2 a6 14. O-O-O Nd5 15. g3 Be7 16. f4 O-O 17. Qh5 g6 18. Qe2 Bf6 19. h4 c5 20. h5 Ne7 21. Rh3 Nf5 22. hxg6 fxg6 23. g4 Nd4 24. Qh2 Bxe5 25. fxe5 Nf3 26. Qg3 Bd5 27. Bc4 Bxc4 28. bxc4 Rf7 29. Rhh1 Qc6 30. Rhf1 Raf8 31. Rf2 Qxa4 32. Rdf1 Qc6 33. d3 a5 34. Kd1 a4 35. Bc1 a3 36. Bh6 a2 37. Ke2 Nd4+ 38. Ke3 Rxf2 0-1